Cogmind - Beta 15 @@@ ROGUE MODE // 2025.09.30 @ 00:23:58 Player: Runagate Result: Destroyed by YI-UF0 with YI-UF0's Doublenader Performance ------------- Evolutions (0) 0 Regions Visited (4) 800 Robots Destroyed (41) 205 Value Destroyed (593) 593 Prototype IDs (28) 560 Alien Tech Used (0) 0 Bonus (300) 300 TOTAL SCORE: 2458 Bonus ------- Aligned with FarCom 300 Cogmind --------- Core Integrity 0/250 Matter 287/300 Energy 256/265 System Corruption 0% Temperature Warm (128) Movement Treading (240) Ox1 Location -9/Mines Parts ------- > --- POWER (1) -------- Improved Ion Engine > --- PROPULSION (2) --- Light Treads > --- UTILITY (2) ------ Medium Storage Unit Trap Reconfigurator > --- WEAPON (2) ------- Ion Cannon Heavy Assault Rifle > --- INVENTORY (10) --- Ion Engine Light Treads High-capacity Storage Unit High-capacity Matter Pod (200) Seismic Detector Improved Light Armor Plating Beam Cannon Beam Cannon Light Cannon Rocket Launcher Peak State ------------ > --- POWER ------------ Improved Ion Engine > --- PROPULSION ------- Light Treads Light Treads > --- UTILITY ---------- Medium Storage Unit Trap Reconfigurator > --- WEAPON ----------- Ion Cannon Heavy Assault Rifle > --- INVENTORY -------- Ion Engine Light Treads High-capacity Storage Unit High-capacity Matter Pod Seismic Detector Improved Light Armor Plating Beam Cannon Beam Cannon Light Cannon Rocket Launcher [Rating: 20] Favorites ----------- Power Improved Ion Engine Engine Improved Ion Engine Propulsion Light Treads Treads Light Treads Utility Medium Storage Unit Device Seismic Detector Storage Medium Storage Unit Processor Targeting Computer Weapon Light Cannon Energy Cannon Beam Cannon Ballistic Gun Assault Rifle Ballistic Cannon Light Cannon Slashing Weapon Mining Claw Build | -11 -10 -10 -10 -9 ------- Run | Yrd Mat Min Exi Min Slots Evolved . | . . . . . Power . | . . . . . Propulsion . | . . . . . Utility . | . . . . . Weapon . | . . . . . Parts Attached 28 | 7 14 4 2 1 Power 7 | 1 5 1 . . Engine 7 | 1 5 1 . . Core . | . . . . . Reactor . | . . . . . Propulsion 5 | 2 . 2 1 . Treads 5 | 2 . 2 1 . Leg . | . . . . . Wheel . | . . . . . Hover . | . . . . . Flight . | . . . . . Utility 7 | 2 4 . 1 . Device 2 | . 1 . 1 . Storage 4 | 2 2 . . . Processor 1 | . 1 . . . Hackware . | . . . . . Protection . | . . . . . Artifact . | . . . . . Weapon 9 | 2 5 1 . 1 Energy Gun . | . . . . . Energy Cannon 3 | . 2 1 . . Ballistic Gun 4 | 2 1 . . 1 Ballistic Cannon 1 | . 1 . . . Launcher . | . . . . . Special Weapon . | . . . . . Impact Weapon . | . . . . . Slashing Weapon 1 | . 1 . . . Piercing Weapon . | . . . . . Special Melee Weapon . | . . . . . Unidentified Prototypes . | . . . . . Parts Lost 1 | . . . . 1 Power . | . . . . . Propulsion 1 | . . . . 1 Utility . | . . . . . Weapon . | . . . . . Highest Loss Streak 1 | . . . . 1 To Critical Strikes . | . . . . . Average Backups 9 | 1 8 9 10 10 Power 1 | . 1 1 1 1 Propulsion . | . . 1 1 1 Utility 3 | . 3 3 3 4 Weapon 3 | . 3 4 4 4 Tool/Special . | . . . . . Unused Backups 13 | . 3 5 . 5 Power 2 | . 2 . . . Propulsion . | . . . . . Utility 7 | . 1 3 . 3 Weapon 4 | . . 2 . 2 Tool/Special . | . . . . . Average Slot Usage (%) 98 | . 97 100 100 99 Engine 13 | . 13 14 14 14 Treads 27 | . 27 28 28 27 Device 9 | . 4 14 14 14 Storage 14 | . 14 14 14 14 Processor 3 | . 7 . . . Energy Cannon 11 | . 9 14 14 14 Ballistic Gun 6 | . 10 . . 11 Ballistic Cannon 9 | . 6 14 14 2 Peak Build Rating 20 | 7 8 11 19 20 Average Rating 10 | 5 7 9 16 19 On Entrance 8 | . 6 8 11 19 Naked Turns . | . . . . . Heaviest Build 27 | 17 22 27 27 27 Greatest Support 40 | 40 40 40 40 40 Greatest Overweight (x) . | . . . . . Average Overweight (x) . | . . . . . Largest Inventory Capacity 10 | 8 10 10 10 10 Average Capacity 9 | 7 9 10 10 10 Most Carried 10 | 3 10 10 10 10 Average Carried 9 | 1 8 9 9 10 Final Capacity 10 | 8 10 10 10 10 Final Carried 10 | 3 10 10 10 10 Class Distribution -------------------- 93% | Mutant 6% | Scavenger-Mutant Dominant Class ---------------- Mutant | -10/Materials Mutant | -10/Mines Mutant | -10/Exiles Scavenger-Mutant | -9/Mines Resources | -11 -10 -10 -10 -9 ----------- Run | Yrd Mat Min Exi Min Matter Collected 1118 | 322 667 61 20 48 Remotely . | . . . . . Salvage Created 1041 | 162 775 25 . 79 Parts 76 | 12 45 7 . 12 Haulers Intercepted 1 | . 1 . . . Recyclers Shooed . | . . . . . Parts Field Recycled . | . . . . . Retrieved Matter . | . . . . . Parts Self-Destructed . | . . . . . Prevented . | . . . . . Kills | -11 -10 -10 -10 -9 ------- Run | Yrd Mat Min Exi Min Combat Hostiles Destroyed 23 | . 14 3 . 6 Guns 9 | . 8 . . 1 Cannons 14 | . 6 3 . 5 Classes Destroyed 9 | 3 6 . . . Worker 7 | 2 5 . . . Builder 1 | . 1 . . . Tunneler 3 | 3 . . . . Hauler 1 | . 1 . . . Recycler 2 | 1 1 . . . Operator 1 | . 1 . . . Watcher 3 | . 3 . . . Swarmer 14 | . 5 3 . 6 Grunt 9 | . 9 . . . Best Kill Streak 5 | 5 5 3 . 3 Combat Bots Only 5 | . 5 3 . 3 Max Kills in Single Turn 2 | 1 2 1 . 1 Gunslinging . | . . . . . Exploded . | . . . . . Melee . | . . . . . Uniques/NPCs Destroyed . | . . . . . Combat | -11 -10 -10 -10 -9 -------- Run | Yrd Mat Min Exi Min Hostile Shots Fired 105 | . 51 14 . 40 Missed 29 | . 15 3 . 11 Hits 76 | . 36 11 . 29 Projectile 76 | . 36 11 . 29 AOE 13 | . . . . 13 Critical Strikes 2 | . 1 . . 1 Damage Taken 1130 | . 437 88 . 605 Core 260 | . 98 . . 162 Absorbed by Shields . | . . . . . Regen/Repaired (Parts) 75 | . 75 . . . Core Remaining (%) 100 | 100 . . . . Volleys Fired 95 | 15 57 6 . 17 Largest 2 | 2 2 2 . 2 Hottest 90 | 40 90 90 . 90 Shots Fired 190 | 30 114 12 . 34 Gun 116 | 30 74 . . 12 Cannon 74 | . 40 12 . 22 Launcher . | . . . . . Special . | . . . . . Kinetic 135 | 30 82 6 . 17 Thermal 55 | . 32 6 . 17 Explosive . | . . . . . Electromagnetic . | . . . . . Robot Hit Streak 21 | 7 21 12 . 4 Robot Miss Streak 5 | 2 3 5 . 3 Penetration Max . | . . . . . Secondary Targets 1 | . 1 . . . Max Gunslinging Chain 1 | . 1 . . . Shots Hit Robots 118 | 20 78 6 . 14 Core Hits 52 | 7 34 3 . 8 Critical Kills 1 | . 1 . . . Critical Parts Destroyed . | . . . . . Critical Strikes 1 | . 1 . . . Destroy 1 | . 1 . . . Melee Attacks 8 | . 8 . . . Impact . | . . . . . Slashing 8 | . 8 . . . Piercing . | . . . . . Sneak Attacks . | . . . . . Combat Hostiles . | . . . . . Follow-up Attacks . | . . . . . Damage Inflicted 1751 | 244 1096 135 . 276 Guns 965 | 244 662 . . 59 Cannons 778 | . 431 130 . 217 Explosions . | . . . . . Melee . | . . . . . Ramming 8 | . 3 5 . . Kinetic 1144 | 244 740 69 . 91 Thermal 599 | . 353 61 . 185 Explosive . | . . . . . Electromagnetic . | . . . . . Impact . | . . . . . Slashing . | . . . . . Piercing . | . . . . . Highest Corruption . | . . . . . Average Corruption . | . . . . . Corruption Purged . | . . . . . Corruption Blocked . | . . . . . Overload Shots . | . . . . . Overflow Damage 3 | . . . . 3 Projectiles 3 | . . . . 3 Explosions . | . . . . . Melee . | . . . . . Knockbacks 3 | . 1 . . 2 Impact . | . . . . . Kinetic 2 | . 1 . . 1 Secondary 1 | . . . . 1 Self-Inflicted Damage . | . . . . . Shots . | . . . . . Rammed 5 | . 2 3 . . Targets Rammed 5 | . 2 3 . . Kicked . | . . . . . Crushed . | . . . . . Highest Temperature 165 | . 84 165 . 165 Average Temperature 43 | . 27 74 . 63 Received Heat Transfer 189 | . 189 . . . Siege Activations . | . . . . . Martial Activations . | . . . . . Shielding Activations . | . . . . . Robots Disrupted . | . . . . . Combat Hostiles . | . . . . . Robots Corrupted . | . . . . . Combat Hostiles . | . . . . . Parts Fried . | . . . . . Impact Corruptions . | . . . . . Robots Melted . | . . . . . Combat Hostiles . | . . . . . Parts Melted 1 | . . . . 1 Heat Transferred 1147 | . 740 111 . 296 Parts Sabotaged . | . . . . . Parts Stolen . | . . . . . Parts Stripped . | . . . . . Power Chain Reactions . | . . . . . Alert | -11 -10 -10 -10 -9 ------- Run | Yrd Mat Min Exi Min Maximum Alert Level . | . . . . . Low Security (%) 100 | 100 100 100 . 100 Level 1 . | . . . . . Level 2 . | . . . . . Level 3 . | . . . . . Level 4 . | . . . . . Level 5 . | . . . . . High Security . | . . . . . Max Security . | . . . . . Peak Influence 147 | 20 147 71 . 88 Initial 3 | . 3 . . . Average 42 | 3 55 11 . 50 Influence Increases 721 | 30 462 71 . 158 Destroy 0b10 Robot/C 460 | . 280 60 . 120 Destroy 0b10 Robot/NC 90 | 30 60 . . . Destroy Leader 98 | . 68 10 . 20 Successful Hack 31 | . 31 . . . Disable Machine 15 | . . . . 15 Destroy Structure 12 | . 8 1 . 3 Lose Combat Pursuer 15 | . 15 . . . Influence Decreases 693 | 25 467 62 9 130 Entered New Map 11 | . 2 . 9 . Time Decay 612 | 25 405 62 . 120 Lost Part 10 | . . . . 10 Purge Threat 60 | . 60 . . . Squads Dispatched 2 | . 2 . . . Investigation 1 | . 1 . . . Extermination . | . . . . . Reinforcement 1 | . 1 . . . Assault . | . . . . . Garrison . | . . . . . Intercept . | . . . . . Searches Triggered . | . . . . . Construction Impeded . | . . . . . Haulers Reinforced . | . . . . . Active Scanning Responses . | . . . . . Cargo Convoy Interrupts . | . . . . . Stealth | -11 -10 -10 -10 -9 --------- Run | Yrd Mat Min Exi Min Distress Signals 3 | . 3 . . . Communications Jammed . | . . . . . Distress Signals . | . . . . . Times Spotted 37 | . 26 4 . 7 Peak Tracking Total 5 | . 5 3 . 3 Tactical Retreats 1 | . 1 . . . Traps | -11 -10 -10 -10 -9 ------- Run | Yrd Mat Min Exi Min Traps Triggered 2 | . 2 . . . Indirectly . | . . . . . Trap Hack Attempts . | . . . . . Triggered . | . . . . . Disarmed . | . . . . . Reprogrammed . | . . . . . Reused . | . . . . . Traps Extracted . | . . . . . Installed . | . . . . . Triggered . | . . . . . Machines | -11 -10 -10 -10 -9 ---------- Run | Yrd Mat Min Exi Min Machines Disabled 1 | . . . . 1 Max in Single Turn 1 | . . . . 1 Machines Repaired . | . . . . . Machines Dismantled . | . . . . . Machines Sabotaged . | . . . . . Overloaded Fab Kills . | . . . . . Hacking | -11 -10 -10 -10 -9 --------- Run | Yrd Mat Min Exi Min Machines Accessed 10 | . 8 1 1 . Terminals 7 | . 7 . . . Fabricators . | . . . . . Repair Stations 1 | . 1 . . . Recycling Units . | . . . . . Scanalyzers . | . . . . . Garrison Access . | . . . . . Total Hacks 32 | . 30 1 1 . Successful 21 | . 19 1 1 . Failed 11 | . 11 . . . Catastrophic . | . . . . . Database Lockouts . | . . . . . Manual 14 | . 13 . 1 . Terminals 26 | . 26 . . . Fabricators . | . . . . . Repair Stations 4 | . 4 . . . Recycling Units . | . . . . . Scanalyzers . | . . . . . Garrison Access . | . . . . . Terminal Hacks 13 | . 11 1 1 . Prototype ID Bank 3 | . 3 . . . Open Door 1 | . . 1 . . Unreport Threat 1 | . 1 . . . Locate Traps 3 | . 3 . . . Registered Components 1 | . 1 . . . Zone Layout 3 | . 3 . . . Proto ID Catalog 1 | . . . 1 . Fabricator Hacks . | . . . . . Repair Station Hacks 3 | . 3 . . . Scan Component 2 | . 2 . . . Repair 1 | . 1 . . . Recycling Unit Hacks . | . . . . . Scanalyzer . | . . . . . Garrison Access Hacks . | . . . . . Unauthorized Hacks 5 | . 5 . . . Terminals 5 | . 5 . . . Botnet 5 | . 5 . . . Fabricators . | . . . . . Repair Stations . | . . . . . Recycling Units . | . . . . . Scanalyzers . | . . . . . Garrison Access . | . . . . . Data Cores Recovered 1 | . 1 . . . Used . | . . . . . Hacking Detections 7 | . 7 . . . Full Trace Events 1 | . 1 . . . Feedback Events . | . . . . . Feedback Blocked . | . . . . . Robot Schematics Acquired . | . . . . . Robots Built . | . . . . . Authchips . | . . . . . Time . | . . . . . Total Robot Build Rating . | . . . . . Part Schematics Acquired . | . . . . . Parts Built . | . . . . . Authchips . | . . . . . Time . | . . . . . Total Part Build Rating . | . . . . . Parts Repaired 1 | . 1 . . . Time 26 | . 26 . . . Parts Recycled . | . . . . . Recycled Matter . | . . . . . Retrieved Matter . | . . . . . Retrieved Components . | . . . . . Parts Scanalyzed . | . . . . . Part Schematics Acquired . | . . . . . Parts Damaged . | . . . . . Bothacking | -11 -10 -10 -10 -9 ------------ Run | Yrd Mat Min Exi Min Used RIF Installer . | . . . . . Robots Hacked . | . . . . . Non-combat . | . . . . . Combat . | . . . . . Robot Hacks Applied . | . . . . . Relay Couplers Released . | . . . . . Fabnet Peak Effective % . | . . . . . Robots Rewired . | . . . . . Allies Hacked . | . . . . . Hacks Repelled . | . . . . . Allies | -11 -10 -10 -10 -9 -------- Run | Yrd Mat Min Exi Min Total Allies . | . . . . . Largest Group . | . . . . . Highest-Rated Group . | . . . . . Highest-Rated Ally . | . . . . . Total Orders . | . . . . . Ally Attacks . | . . . . . Total Damage . | . . . . . Kills . | . . . . . Allies Corrupted . | . . . . . Allies Melted . | . . . . . Intel | -11 -10 -10 -10 -9 ------- Run | Yrd Mat Min Exi Min Active Infowar (turns) 1160 | . 496 470 194 . Seismic 1160 | . 496 470 194 . Robot Analysis Total . | . . . . . Derelict Logs Recovered 1 | . . 1 . . Drone Launches . | . . . . . Drone Recoveries . | . . . . . Exploration | -11 -10 -10 -10 -9 ------------- Run | Yrd Mat Min Exi Min Turns Passed 3091 | 141 1503 470 725 252 Spaces Moved 1633 | 53 734 271 451 124 Core 3 | 3 . . . . Treads 1630 | 50 734 271 451 124 Legs . | . . . . . Wheels . | . . . . . Hover . | . . . . . Flight . | . . . . . Fastest Speed 50 | 50 160 160 160 160 Average Speed 159 | 153 160 160 160 160 Slowest Speed 160 | 160 160 160 160 160 Overloaded Moves . | . . . . . Propulsion Burnouts . | . . . . . Robots Hopped . | . . . . . Potential Cave-ins . | . . . . . Cave-ins Triggered . | . . . . . Exploration Rate (%) 53 | 6 98 50 90 24 Regions Visited 4 Branch Regions 3 Pre-discovered Areas . | . . . . . Known Exits Taken . | . . . . . Unknown Exits Taken 4 | 1 1 1 1 . Scrap Searched 3 | . . 1 . 2 Spaces Dug 4 | . 4 . . . Terrain Destroyed 10 | . 4 1 . 5 Melee 4 | . 4 . . . Projectile 6 | . . 1 . 5 AOE . | . . . . . Terrain Rammed . | . . . . . Walls Destroyed . | . . . . . Machines Disabled . | . . . . . Actions | -11 -10 -10 -10 -9 --------- Run | Yrd Mat Min Exi Min Total 1916 | 80 934 303 454 145 Wait 99 | 3 91 2 . 3 Move 1629 | 52 733 270 450 124 Hop . | . . . . . Pick Up 21 | 2 11 7 1 . Fast Attach 12 | 7 5 . . . Attach . | . . . . . Detach 1 | 1 . . . . Swap 22 | . 15 4 2 1 Drop 24 | . 12 11 1 . Fire 95 | 15 57 6 . 17 Melee 8 | . 8 . . . Ram . | . . . . . Kick . | . . . . . Crush 5 | . 2 3 . . Escape Stasis . | . . . . . Rewire . | . . . . . Trap . | . . . . . Miscellaneous . | . . . . . Route ------- -11/Scrapyard -10/Materials (discovered 4 exits: *Mat x3 / *Min) -10/Mines (discovered 2 exits: Mat / *Exi) -10/Exiles -9/Mines History --------- Turn | Location | Event 18 | -11/Scrapyard | Discovered new exit (range 15) 142 | -11/Scrapyard | Entered Materials 300 | -10/Materials | Build established: Mutant 562 | -10/Materials | Discovered new exit (range 6) 744 | -10/Materials | Discovered new exit (range 15) 956 | -10/Materials | Discovered new exit (range 20) 1181 | -10/Materials | Repaired Lgt. Treads 1412 | -10/Materials | Discovered new exit (range 15) 1645 | -10/Materials | Entered Mines 1709 | -10/Mines | Identified exit to Materials 1722 | -10/Mines | Joined a pair of Derelicts in attacking an 0b10 outpost 1885 | -10/Mines | Met a Derelict who couldn't figure out how to use a Trap Extractor 2035 | -10/Mines | Received a Rocket Launcher from a helpful Derelict 2107 | -10/Mines | Deemed a non-threat by the Exiles lab entrance 2108 | -10/Mines | Discovered new exit (range 5) 2115 | -10/Mines | Entered Exiles 2163 | -10/Exiles | Met 8R-AWN 2184 | -10/Exiles | Met EX-HEX 2231 | -10/Exiles | Met EX-BIN 2258 | -10/Exiles | Aligned with FarCom system 2259 | -10/Exiles | Given EX-Vault access code 2298 | -10/Exiles | Opened EX-Vault 2309 | -10/Exiles | Found Trap Reconfigurator 2350 | -10/Exiles | Warned to stay clear of 0b10 Research branches 2400 | -10/Exiles | Met EX-DEC 2526 | -10/Exiles | Visited The Gauntlet 2827 | -10/Exiles | Discovered new exit (range 10) 2840 | -10/Exiles | Left Exiles lab with Trap Reconfigurator 2840 | -10/Exiles | Entered Mines 2848 | -9/Mines | Core integrity fell below 50% 3088 | -9/Mines | Core integrity fell below 20% 3092 | -9/Mines | Destroyed by YI-UF0 with YI-UF0's Doublenader Last Messages --------------- 02895_ Found Terrain Scan Processor. 02895_ Found Med. Armor Plating. 02895_ Found 32 Matter. 02905_ Searching scrap... 02905_ Found Sensor Array. 02905_ Found Lrg. Battery. 02905_ Found Signal Interpreter. 02905_ Found Trap Extractor. 02905_ Found 37 Matter. 02997_ Destroyed Flight Unit. 03000_ S-10 Pest destroyed. 03003_ Acquired 6 matter. 03007_ S-10 Pest destroyed. 03016_ Flight Unit melted. 03016_ S-10 Pest destroyed. 03021_ Acquired 12 matter. 03077_ YI-UF0: "KAPOW!" 03082_ The unstable cave ceiling collapses. 03085_ Lgt. Treads destroyed. 03089_ The unstable cave ceiling collapses. Map ----- +----------------------------------------------------+ | ?????????????????????????????????????????????? | | ?????????????????????????????????????????????? | | ?????????????????????????????????????????????? | | ?????????????????????????????????????????????? | | ?????????????????????????????????????????????? | | ?????????????????????????????????????????????? | | ?????????????????????????????????????????????? | | ?????????????????????????????????????????????? | | ??????????????????????????#??????????????????? | | ?????????????????????????? #?????????????????? | | ?????????????????????????? ????????????????? | | ???????????????????????? ??????? ???????? | | ??????????????????????? ?????? ???????? | | ??????????????????????? ## *%#???? ???????? | | ??????????????????????? g% ???? [%???????? | | ??????????????????????? ????? ????????? | | ??????????????????????? #????? ????????? | | ????????????????????### ???? ????????? | | ??????????#########?# #????? ##???????? | | ?????????## ### #????? $ ????????? | | ??????#### # ##????? #????????? | | ?????## # ##???? #????????? | | ?????# ##?## #????????? | | ??????# ### ##???????? | | ???????##### # #???????? | | ???????????###### @ # ##???????? | | ????????????????## ####????????? | | ????????????????# ## ##???????????? | | ????????????????## #####????????????? | | ?????????????????## ### # #????????????????? | | ??????????????##### ##??## #????????????????? | | ??????????????# #????# #????????????????? | | ?????????###### #####????# #????????????????? | | ?????????# #????????#!!#????????????????? | | ?????????# #### #????????#!%#????????????????? | | ?????????# #??# #????????# !#????????????????? | | ??????#### #### #????????# #????????????????? | | ??????# # #???######%]##???????????????? | | ??????# """ #[#???# !! #???????????????? | | ??????# """ #%#???# #???????????????? | | ??????# """ #[#???# #???????????????? | | ??????# =#%#???# #???????????????? | | ??????# """ *=*#???# #???????????????? | | ??????# """ ###??## "" #???????????????? | | ??????# """ #????#" % "" #???????????????? | | ??????# #????##[***"" #???????????????? | | ??????#########????#%%== #???????????????? | | ???????????????????##"########???????????????? | | ????????????????????###??????????????????????? | | ?????????????????????????????????????????????? | +----------------------------------------------------+ Best States ------------- Heat Dissipation 25 Energy Generation 12 Energy Capacity 265 Matter Stores 300 Matter Capacity 300 Sight Range 16 Terrain Scan Density 10 Evasion (%) 40 Targeting Accuracy 5 Recoil Reduction 2 Item Schematics ----------------- None Robot Schematics ------------------ None Fabricated ------------ Nothing Repaired ---------- Lgt. Treads | 46% | -10/Materials Alien Tech Used ----------------- None Achievements -------------- None Challenges ------------ None Game ------ Seed PhaseGravitonFlakker Manual? 0 Play Time 00:16:22 Cumulative 114.2 hours Start 2025.09.30 @ 00:09:09 End 2025.09.30 @ 00:23:58 Sessions 1 Manual Loads 0 Difficulty Rogue Special Mode None Game No. 222 Rogue 220 Adventurer 0 Explorer 2 Win Type - Total 1 Types 1/0/0/0/0/0/0/0/0/0 Lore% 41 Gallery% 50 Achievement% 44 Wizard Run 0 Options --------- Layout 2 ASCII 0 Keyboard 1 Movement Arrows Keybinds 0 Fullscreen 1 Font 28/SmallcapsGlow Map View 50x49 Zoom Use 0% Tactical HUD 1 Map Filters NONE Filters NONE Steam 1 RUN: a20cb786-aca6-4150-996a-ce0139c45447